[Event "Titled Tuesday Blitz May 24 Early 2022"]
[White "Kowalysko, Roman"]
[Black "Namitbir Singh Walia"]
[WhiteFideId "30918510"]
[BlackFideId "35071068"]
[WhiteElo "2176"]
[BlackElo "1565"]
[Result "0-1"]
[Round "10"]
[TimeControl "180+1"]
[Date "2022.05.25"]
[WhiteClock "0:00:21"]
[BlackClock "0:00:32"]

1. e4 {[%clk 0:03:00]}  c5 {[%clk 0:02:58]} 2. Nf3 {[%clk 0:03:00]}  Nc6 {[%clk 0:02:59]} 3. d4 {[%clk 0:03:00]}  cxd4 {[%clk 0:03:00]} 4. Nxd4 {[%clk 0:03:01]}  g6 {[%clk 0:03:00]} 5. Nc3 {[%clk 0:03:00]}  Bg7 {[%clk 0:03:00]} 6. Be3 {[%clk 0:03:00]}  Nf6 {[%clk 0:03:00]} 7. Be2 {[%clk 0:03:00]}  O-O {[%clk 0:03:00]} 8. O-O {[%clk 0:03:01]}  d5 {[%clk 0:03:00]} 9. exd5 {[%clk 0:03:00]}  Nxd5 {[%clk 0:03:01]} 10. Nxd5 {[%clk 0:03:00]}  Qxd5 {[%clk 0:03:01]} 11. Nxc6 {[%clk 0:03:00]}  Qxc6 {[%clk 0:02:57]} 12. Bf3 {[%clk 0:02:59]}  Qa6 {[%clk 0:02:54]} 13. c3 {[%clk 0:02:51]}  Be6 {[%clk 0:02:52]} 14. Be2 {[%clk 0:02:44]}  Qc6 {[%clk 0:02:49]} 15. Bf3 {[%clk 0:02:44]}  Qb5 {[%clk 0:02:48]} 16. Qc2 {[%clk 0:02:38]}  Rfd8 {[%clk 0:02:46]} 17. Be2 {[%clk 0:02:30]}  Qc6 {[%clk 0:02:43]} 18. Bf3 {[%clk 0:02:30]}  Bd5 {[%clk 0:02:30]} 19. Bxd5 {[%clk 0:02:26]}  Rxd5 {[%clk 0:02:31]} 20. Rfd1 {[%clk 0:02:23]}  Rad8 {[%clk 0:02:30]} 21. Rxd5 {[%clk 0:02:22]}  Rxd5 {[%clk 0:02:31]} 22. Rd1 {[%clk 0:02:23]}  b6 {[%clk 0:02:29]} 23. Rxd5 {[%clk 0:02:22]}  Qxd5 {[%clk 0:02:30]} 24. c4 {[%clk 0:02:21]}  Qe5 {[%clk 0:02:24]} 25. h3 {[%clk 0:01:54]}  Qxb2 {[%clk 0:02:23]} 26. Qxb2 {[%clk 0:01:54]}  Bxb2 {[%clk 0:02:23]} 27. c5 {[%clk 0:01:53]}  bxc5 {[%clk 0:01:58]} 28. Bxc5 {[%clk 0:01:53]}  a5 {[%clk 0:01:55]} 29. Bxe7 {[%clk 0:01:53]}  f5 {[%clk 0:01:55]} 30. Kf1 {[%clk 0:01:50]}  Kf7 {[%clk 0:01:55]} 31. Bc5 {[%clk 0:01:50]}  Ke6 {[%clk 0:01:55]} 32. Ke2 {[%clk 0:01:50]}  Kd5 {[%clk 0:01:55]} 33. Bb6 {[%clk 0:01:48]}  a4 {[%clk 0:01:55]} 34. Kd3 {[%clk 0:01:48]}  Be5 {[%clk 0:01:53]} 35. Ba7 {[%clk 0:01:37]}  g5 {[%clk 0:01:51]} 36. Bb6 {[%clk 0:01:36]}  h5 {[%clk 0:01:51]} 37. Bd8 {[%clk 0:01:36]}  g4 {[%clk 0:01:39]} 38. hxg4 {[%clk 0:01:36]}  fxg4 {[%clk 0:01:39]} 39. Be7 {[%clk 0:01:33]}  Bd4 {[%clk 0:01:17]} 40. f4 {[%clk 0:01:17]}  Bf2 {[%clk 0:01:06]} 41. f5 {[%clk 0:01:15]}  h4 {[%clk 0:01:00]} 42. Ke2 {[%clk 0:01:15]}  Bg3 {[%clk 0:00:57]} 43. f6 {[%clk 0:00:40]}  Ke6 {[%clk 0:00:55]} 44. Bd8 {[%clk 0:00:38]}  Kf7 {[%clk 0:00:42]} 45. Ke3 {[%clk 0:00:25]}  Be5 {[%clk 0:00:24]} 46. Ke4 {[%clk 0:00:14]}  Bxf6 {[%clk 0:00:23]} 47. Bxf6 {[%clk 0:00:14]}  Kxf6 {[%clk 0:00:24]} 48. Kf4 {[%clk 0:00:15]}  h3 {[%clk 0:00:24]} 49. gxh3 {[%clk 0:00:15]}  gxh3 {[%clk 0:00:25]} 50. Kg3 {[%clk 0:00:16]}  Ke5 {[%clk 0:00:26]} 51. Kxh3 {[%clk 0:00:16]}  Kd4 {[%clk 0:00:27]} 52. Kg2 {[%clk 0:00:17]}  Kc3 {[%clk 0:00:28]} 53. Kf2 {[%clk 0:00:18]}  Kb2 {[%clk 0:00:29]} 54. Ke1 {[%clk 0:00:19]}  Kxa2 {[%clk 0:00:29]} 55. Kd1 {[%clk 0:00:20]}  Kb2 {[%clk 0:00:29]} 56. Kd2 {[%clk 0:00:21]}  a3 {[%clk 0:00:30]} 57. Kd3 {[%clk 0:00:21]}  a2 {[%clk 0:00:31]} 58. Kd4 {[%clk 0:00:22]}  a1=Q {[%clk 0:00:32]} 59. Kc4 {[%clk 0:00:22]}  Qc1+ {[%clk 0:00:32]} 60. Kd3 {[%clk 0:00:22]}  Qc3+ {[%clk 0:00:32]} 61. Ke4 {[%clk 0:00:22]}  Kc2 {[%clk 0:00:32]} 62. Kd5 {[%clk 0:00:23]}  Kd3 {[%clk 0:00:33]} 63. Kd6 {[%clk 0:00:23]}  Qd4+ {[%clk 0:00:33]} 64. Kc6 {[%clk 0:00:23]}  Ke4 {[%clk 0:00:34]} 65. Kb5 {[%clk 0:00:23]}  Qe5+ {[%clk 0:00:35]} 66. Kc4 {[%clk 0:00:23]}  Qd5+ {[%clk 0:00:35]} 67. Kc3 {[%clk 0:00:24]}  Qd4+ {[%clk 0:00:34]} 68. Kc2 {[%clk 0:00:24]}  Qd3+ {[%clk 0:00:34]} 69. Kb2 {[%clk 0:00:25]}  Kd4 {[%clk 0:00:34]} 70. Kc1 {[%clk 0:00:21]}  Qe2 {[%clk 0:00:33]} 71. Kb1 {[%clk 0:00:21]}  Kc3 {[%clk 0:00:33]} 72. Ka1 {[%clk 0:00:21]}  Qb2# {[%clk 0:00:32]} 0-1


[Site "https://www.chess.com"]

[Event "Titled Tuesday Blitz May 24 Early 2022"]
[White "Lazavik, Denis"]
[Black "Rostovtsev, Dmitry"]
[WhiteFideId "13515110"]
[BlackFideId "34278320"]
[WhiteElo "2437"]
[BlackElo "2274"]
[Result "0-1"]
[Round "10"]
[TimeControl "180+1"]
[Date "2022.05.24"]
[WhiteClock "0:00:06"]
[BlackClock "0:00:05"]

1. d4 {[%clk 0:03:00]}  Nf6 {[%clk 0:02:59]} 2. c4 {[%clk 0:03:01]}  e6 {[%clk 0:02:59]} 3. Nf3 {[%clk 0:03:00]}  d5 {[%clk 0:02:58]} 4. g3 {[%clk 0:03:01]}  Bb4+ {[%clk 0:02:55]} 5. Bd2 {[%clk 0:03:01]}  Bd6 {[%clk 0:02:55]} 6. Bg2 {[%clk 0:02:59]}  O-O {[%clk 0:02:56]} 7. Qc2 {[%clk 0:02:59]}  c6 {[%clk 0:02:54]} 8. Nc3 {[%clk 0:02:59]}  Nbd7 {[%clk 0:02:53]} 9. e4 {[%clk 0:02:51]}  dxe4 {[%clk 0:02:52]} 10. Nxe4 {[%clk 0:02:51]}  Nxe4 {[%clk 0:02:53]} 11. Qxe4 {[%clk 0:02:51]}  e5 {[%clk 0:02:47]} 12. O-O {[%clk 0:02:26]}  Nf6 {[%clk 0:02:44]} 13. Qh4 {[%clk 0:02:18]}  e4 {[%clk 0:02:43]} 14. Ne5 {[%clk 0:02:10]}  Be7 {[%clk 0:01:45]} 15. Qf4 {[%clk 0:01:19]}  Qxd4 {[%clk 0:01:30]} 16. Bc3 {[%clk 0:01:18]}  Qb6 {[%clk 0:01:25]} 17. Bxe4 {[%clk 0:01:14]}  Nxe4 {[%clk 0:01:24]} 18. Qxe4 {[%clk 0:01:15]}  Bf6 {[%clk 0:01:20]} 19. Rfe1 {[%clk 0:01:10]}  Re8 {[%clk 0:01:08]} 20. Qf4 {[%clk 0:01:07]}  Be6 {[%clk 0:00:56]} 21. Re3 {[%clk 0:01:02]}  Rad8 {[%clk 0:00:51]} 22. Rae1 {[%clk 0:01:00]}  Qc7 {[%clk 0:00:44]} 23. h4 {[%clk 0:00:54]}  c5 {[%clk 0:00:33]} 24. Qf3 {[%clk 0:00:50]}  Bxe5 {[%clk 0:00:29]} 25. Rxe5 {[%clk 0:00:48]}  Bd7 {[%clk 0:00:20]} 26. Qf4 {[%clk 0:00:33]}  Rxe5 {[%clk 0:00:20]} 27. Bxe5 {[%clk 0:00:33]}  Qc6 {[%clk 0:00:19]} 28. Rd1 {[%clk 0:00:32]}  Re8 {[%clk 0:00:18]} 29. Rd6 {[%clk 0:00:29]}  Qc7 {[%clk 0:00:03]} 30. h5 {[%clk 0:00:07]}  f6 {[%clk 0:00:02]} 31. Bxf6 {[%clk 0:00:05]}  gxf6 {[%clk 0:00:02]} 32. Qxf6 {[%clk 0:00:06]}  Bc6 {[%clk 0:00:02]} 33. Kh2 {[%clk 0:00:05]}  Qg7 {[%clk 0:00:02]} 34. Qf4 {[%clk 0:00:04]}  Rf8 {[%clk 0:00:02]} 35. Qe3 {[%clk 0:00:04]}  Qf7 {[%clk 0:00:03]} 36. f4 {[%clk 0:00:04]}  Qxh5+ {[%clk 0:00:03]} 37. Kg1 {[%clk 0:00:04]}  Re8 {[%clk 0:00:03]} 38. Re6 {[%clk 0:00:03]}  Qh1+ {[%clk 0:00:03]} 39. Kf2 {[%clk 0:00:03]}  Qg2+ {[%clk 0:00:02]} 40. Ke1 {[%clk 0:00:03]}  Rxe6 {[%clk 0:00:03]} 41. Qxe6+ {[%clk 0:00:03]}  Kg7 {[%clk 0:00:04]} 42. Qg4+ {[%clk 0:00:04]}  Kf6 {[%clk 0:00:04]} 43. Qg5+ {[%clk 0:00:04]}  Kf7 {[%clk 0:00:04]} 44. Qf5+ {[%clk 0:00:04]}  Ke8 {[%clk 0:00:04]} 45. Qe6+ {[%clk 0:00:05]}  Kd8 {[%clk 0:00:05]} 46. Qd6+ {[%clk 0:00:04]}  Kc8 {[%clk 0:00:06]} 47. Qf8+ {[%clk 0:00:02]}  Kc7 {[%clk 0:00:06]} 48. Qe7+ {[%clk 0:00:03]}  Kb6 {[%clk 0:00:07]} 49. Qe3 {[%clk 0:00:03]}  Qxb2 {[%clk 0:00:06]} 50. f5 {[%clk 0:00:04]}  Qb1+ {[%clk 0:00:04]} 51. Kd2 {[%clk 0:00:04]}  Qxf5 {[%clk 0:00:05]} 52. Qb3+ {[%clk 0:00:05]}  Kc7 {[%clk 0:00:05]} 53. Qe3 {[%clk 0:00:06]}  Qd7+ {[%clk 0:00:05]} 54. Kc3 {[%clk 0:00:06]}  Qd4+ {[%clk 0:00:05]} 0-1


[Site "https://www.chess.com"]

[Event "Titled Tuesday Blitz May 24 Early 2022"]
[White "Legenia, Artem"]
[Black "Toncheva, Nadya"]
[WhiteFideId "14136945"]
[BlackFideId "2924056"]
[WhiteElo "1936"]
[BlackElo "1888"]
[Result "0-1"]
[Round "10"]
[TimeControl "180+1"]
[Date "2022.05.25"]
[WhiteClock "0:00:13"]
[BlackClock "0:00:08"]

1. g3 {[%clk 0:02:50]}  c5 {[%clk 0:02:59]} 2. Bg2 {[%clk 0:02:50]}  Nc6 {[%clk 0:02:59]} 3. b3 {[%clk 0:02:50]}  g6 {[%clk 0:02:57]} 4. Bb2 {[%clk 0:02:51]}  Nf6 {[%clk 0:02:56]} 5. e3 {[%clk 0:02:51]}  Bg7 {[%clk 0:02:55]} 6. Ne2 {[%clk 0:02:51]}  O-O {[%clk 0:02:56]} 7. O-O {[%clk 0:02:51]}  d5 {[%clk 0:02:54]} 8. d3 {[%clk 0:02:49]}  e5 {[%clk 0:02:53]} 9. a3 {[%clk 0:02:49]}  Bg4 {[%clk 0:02:52]} 10. h3 {[%clk 0:02:49]}  Be6 {[%clk 0:02:51]} 11. Nd2 {[%clk 0:02:47]}  Qd7 {[%clk 0:02:50]} 12. Kh2 {[%clk 0:02:47]}  Rac8 {[%clk 0:02:39]} 13. e4 {[%clk 0:02:43]}  d4 {[%clk 0:02:36]} 14. f4 {[%clk 0:02:41]}  exf4 {[%clk 0:02:35]} 15. Nxf4 {[%clk 0:02:39]}  Ne5 {[%clk 0:02:30]} 16. Nf3 {[%clk 0:02:39]}  Qd6 {[%clk 0:02:21]} 17. Bc1 {[%clk 0:02:21]}  Nfd7 {[%clk 0:02:08]} 18. Nxe6 {[%clk 0:02:13]}  Qxe6 {[%clk 0:02:01]} 19. Bf4 {[%clk 0:02:10]}  b6 {[%clk 0:01:50]} 20. Qd2 {[%clk 0:01:50]}  b5 {[%clk 0:01:29]} 21. a4 {[%clk 0:01:49]}  a6 {[%clk 0:01:28]} 22. Bh6 {[%clk 0:01:44]}  Nxf3+ {[%clk 0:01:21]} 23. Bxf3 {[%clk 0:01:41]}  Ne5 {[%clk 0:01:19]} 24. axb5 {[%clk 0:01:33]}  axb5 {[%clk 0:01:18]} 25. Bf4 {[%clk 0:01:33]}  c4 {[%clk 0:01:09]} 26. Bxe5 {[%clk 0:01:32]}  Qxe5 {[%clk 0:01:09]} 27. bxc4 {[%clk 0:01:24]}  bxc4 {[%clk 0:01:09]} 28. Ra5 {[%clk 0:01:24]}  c3 {[%clk 0:01:00]} 29. Qg5 {[%clk 0:00:57]}  Qxg5 {[%clk 0:00:56]} 30. Rxg5 {[%clk 0:00:56]}  Rb8 {[%clk 0:00:56]} 31. e5 {[%clk 0:00:53]}  h6 {[%clk 0:00:49]} 32. Rg4 {[%clk 0:00:52]}  Bxe5 {[%clk 0:00:48]} 33. Bd5 {[%clk 0:00:52]}  Kg7 {[%clk 0:00:44]} 34. Re4 {[%clk 0:00:45]}  Bf6 {[%clk 0:00:42]} 35. Ref4 {[%clk 0:00:43]}  Rb6 {[%clk 0:00:42]} 36. Bc4 {[%clk 0:00:38]}  Re8 {[%clk 0:00:38]} 37. R1f2 {[%clk 0:00:37]}  Re3 {[%clk 0:00:35]} 38. Kg2 {[%clk 0:00:37]}  Re1 {[%clk 0:00:26]} 39. R4f3 {[%clk 0:00:33]}  Rbb1 {[%clk 0:00:17]} 40. Rxf6 {[%clk 0:00:13]}  Rg1+ {[%clk 0:00:17]} 41. Kf3 {[%clk 0:00:14]}  Kxf6 {[%clk 0:00:17]} 42. Kg4+ {[%clk 0:00:14]}  Ke5 {[%clk 0:00:16]} 43. Rxf7 {[%clk 0:00:14]}  Rbf1 {[%clk 0:00:14]} 44. Re7+ {[%clk 0:00:14]}  Kd6 {[%clk 0:00:12]} 45. Re6+ {[%clk 0:00:15]}  Kc5 {[%clk 0:00:11]} 46. Rxg6 {[%clk 0:00:15]}  Rxg3+ {[%clk 0:00:05]} 47. Kh5 {[%clk 0:00:14]}  Rxg6 {[%clk 0:00:05]} 48. Kxg6 {[%clk 0:00:14]}  Rf2 {[%clk 0:00:05]} 49. Bb3 {[%clk 0:00:13]}  Rh2 {[%clk 0:00:05]} 50. Kxh6 {[%clk 0:00:12]}  Rxh3+ {[%clk 0:00:05]} 51. Kg6 {[%clk 0:00:13]}  Rh2 {[%clk 0:00:06]} 52. Kf6 {[%clk 0:00:13]}  Rd2 {[%clk 0:00:06]} 53. Ke5 {[%clk 0:00:13]}  Re2+ {[%clk 0:00:07]} 54. Kf4 {[%clk 0:00:13]}  Kb4 {[%clk 0:00:06]} 55. Kf3 {[%clk 0:00:13]}  Re3+ {[%clk 0:00:07]} 56. Kf2 {[%clk 0:00:14]}  Ka3 {[%clk 0:00:08]} 57. Kf1 {[%clk 0:00:13]}  Kb2 {[%clk 0:00:08]} 58. Kf2 {[%clk 0:00:14]}  Kc1 {[%clk 0:00:09]} 59. Ba4 {[%clk 0:00:13]}  Kb2 {[%clk 0:00:09]} 60. Kf1 {[%clk 0:00:13]}  Kc1 {[%clk 0:00:08]} 61. Kf2 {[%clk 0:00:13]}  Kd2 {[%clk 0:00:09]} 62. Bb3 {[%clk 0:00:13]}  Re2+ {[%clk 0:00:07]} 63. Kf1 {[%clk 0:00:13]}  Re1+ {[%clk 0:00:08]} 64. Kf2 {[%clk 0:00:13]}  Rb1 {[%clk 0:00:08]} 65. Ba4 {[%clk 0:00:13]}  Rb2 {[%clk 0:00:08]} 66. Kf1 {[%clk 0:00:13]}  Rxc2 {[%clk 0:00:08]} 0-1


[Site "https://www.chess.com"]

[Event "Titled Tuesday Blitz May 24 Early 2022"]
[White "Leschinsky, Gary"]
[Black "Pham, Le Thao Nguyen"]
[WhiteFideId "30951321"]
[BlackFideId "12401226"]
[WhiteElo "1782"]
[BlackElo "2271"]
[Result "0-1"]
[Round "10"]
[TimeControl "180+1"]
[Date "2022.05.25"]
[WhiteClock "0:00:33"]
[BlackClock "0:00:11"]

1. d4 {[%clk 0:03:00]}  d5 {[%clk 0:02:43]} 2. c4 {[%clk 0:03:00]}  c6 {[%clk 0:02:44]} 3. Nc3 {[%clk 0:03:00]}  Nf6 {[%clk 0:02:39]} 4. Nf3 {[%clk 0:03:00]}  a6 {[%clk 0:02:37]} 5. e3 {[%clk 0:02:55]}  b5 {[%clk 0:02:27]} 6. b3 {[%clk 0:02:55]}  Bg4 {[%clk 0:02:25]} 7. h3 {[%clk 0:02:53]}  Bh5 {[%clk 0:02:17]} 8. Be2 {[%clk 0:02:51]}  e6 {[%clk 0:02:14]} 9. O-O {[%clk 0:02:48]}  Nbd7 {[%clk 0:02:09]} 10. Bb2 {[%clk 0:02:45]}  Bb4 {[%clk 0:01:43]} 11. a3 {[%clk 0:02:41]}  Ba5 {[%clk 0:01:41]} 12. Ne5 {[%clk 0:02:28]}  Bxe2 {[%clk 0:01:22]} 13. Nxe2 {[%clk 0:02:25]}  Rc8 {[%clk 0:01:09]} 14. Rc1 {[%clk 0:02:22]}  Nxe5 {[%clk 0:01:03]} 15. dxe5 {[%clk 0:02:22]}  Nd7 {[%clk 0:01:02]} 16. f4 {[%clk 0:02:17]}  O-O {[%clk 0:01:01]} 17. b4 {[%clk 0:02:15]}  Bc7 {[%clk 0:00:57]} 18. c5 {[%clk 0:02:13]}  Qe7 {[%clk 0:00:53]} 19. Nd4 {[%clk 0:02:09]}  Bb8 {[%clk 0:00:53]} 20. Qg4 {[%clk 0:02:06]}  Rfe8 {[%clk 0:00:33]} 21. Rf3 {[%clk 0:01:30]}  f6 {[%clk 0:00:28]} 22. Nxe6 {[%clk 0:01:11]}  Qxe6 {[%clk 0:00:25]} 23. f5 {[%clk 0:01:10]}  Nxe5 {[%clk 0:00:25]} 24. fxe6 {[%clk 0:01:05]}  Nxg4 {[%clk 0:00:25]} 25. hxg4 {[%clk 0:01:05]}  Rxe6 {[%clk 0:00:25]} 26. Bd4 {[%clk 0:01:01]}  h6 {[%clk 0:00:25]} 27. g5 {[%clk 0:00:42]}  hxg5 {[%clk 0:00:25]} 28. Rcf1 {[%clk 0:00:42]}  Rce8 {[%clk 0:00:20]} 29. Rh3 {[%clk 0:00:41]}  Kf7 {[%clk 0:00:16]} 30. g4 {[%clk 0:00:38]}  Re4 {[%clk 0:00:15]} 31. Rh7 {[%clk 0:00:34]}  Rxg4+ {[%clk 0:00:15]} 32. Kf2 {[%clk 0:00:35]}  Kg6 {[%clk 0:00:15]} 33. Rh3 {[%clk 0:00:33]}  Rge4 {[%clk 0:00:12]} 34. Kf3 {[%clk 0:00:33]}  g4+ {[%clk 0:00:11]} 0-1


[Site "https://www.chess.com"]

[Event "Titled Tuesday Blitz May 24 Early 2022"]
[White "Maksimenko, Viktor"]
[Black "Gulevich, Artem"]
[WhiteFideId "13710478"]
[BlackFideId "24119580"]
[WhiteElo "2269"]
[BlackElo "2218"]
[Result "0-1"]
[Round "10"]
[TimeControl "180+1"]
[Date "2022.05.25"]
[WhiteClock "0:00:07"]
[BlackClock "0:00:30"]

1. d4 {[%clk 0:02:33]}  d5 {[%clk 0:02:59]} 2. c4 {[%clk 0:02:32]}  c6 {[%clk 0:02:59]} 3. Nc3 {[%clk 0:02:31]}  Nf6 {[%clk 0:02:59]} 4. Nf3 {[%clk 0:02:29]}  e6 {[%clk 0:02:59]} 5. e3 {[%clk 0:02:29]}  Nbd7 {[%clk 0:02:59]} 6. Be2 {[%clk 0:02:28]}  Bd6 {[%clk 0:02:59]} 7. O-O {[%clk 0:02:28]}  O-O {[%clk 0:02:58]} 8. b3 {[%clk 0:02:29]}  dxc4 {[%clk 0:02:54]} 9. Bxc4 {[%clk 0:02:27]}  e5 {[%clk 0:02:54]} 10. Bb2 {[%clk 0:02:22]}  Qe7 {[%clk 0:02:53]} 11. h3 {[%clk 0:02:14]}  Rd8 {[%clk 0:02:51]} 12. Qc2 {[%clk 0:02:11]}  exd4 {[%clk 0:02:31]} 13. Nxd4 {[%clk 0:02:12]}  Ne5 {[%clk 0:02:30]} 14. Be2 {[%clk 0:02:10]}  Ng6 {[%clk 0:02:14]} 15. Nf5 {[%clk 0:01:53]}  Bxf5 {[%clk 0:02:08]} 16. Qxf5 {[%clk 0:01:54]}  Qe5 {[%clk 0:02:02]} 17. Qxe5 {[%clk 0:01:52]}  Bxe5 {[%clk 0:02:02]} 18. Rad1 {[%clk 0:01:42]}  Ne4 {[%clk 0:01:57]} 19. Nxe4 {[%clk 0:01:39]}  Bxb2 {[%clk 0:01:57]} 20. Nd6 {[%clk 0:01:34]}  Rd7 {[%clk 0:01:45]} 21. f4 {[%clk 0:01:25]}  Kf8 {[%clk 0:01:44]} 22. Bc4 {[%clk 0:01:20]}  Rad8 {[%clk 0:01:36]} 23. Nxf7 {[%clk 0:00:53]}  Rxd1 {[%clk 0:01:31]} 24. Nxd8 {[%clk 0:00:54]}  Rxd8 {[%clk 0:01:31]} 25. f5 {[%clk 0:00:48]}  Nh4 {[%clk 0:01:21]} 26. e4 {[%clk 0:00:47]}  Rd2 {[%clk 0:01:20]} 27. g3 {[%clk 0:00:39]}  Rg2+ {[%clk 0:01:07]} 28. Kh1 {[%clk 0:00:39]}  Rxg3 {[%clk 0:01:08]} 29. Rd1 {[%clk 0:00:39]}  c5 {[%clk 0:00:47]} 30. Kh2 {[%clk 0:00:13]}  Rg2+ {[%clk 0:00:46]} 31. Kh1 {[%clk 0:00:14]}  Bd4 {[%clk 0:00:46]} 32. Rf1 {[%clk 0:00:11]}  Rg3 {[%clk 0:00:36]} 33. Kh2 {[%clk 0:00:08]}  Be5 {[%clk 0:00:36]} 34. Kh1 {[%clk 0:00:07]}  Rxh3+ {[%clk 0:00:33]} 35. Kg1 {[%clk 0:00:08]}  Bd4+ {[%clk 0:00:33]} 36. Rf2 {[%clk 0:00:07]}  Rf3 {[%clk 0:00:30]} 0-1


[Site "https://www.chess.com"]

[Event "Titled Tuesday Blitz May 24 Early 2022"]
[White "Maksimovic, Bojan"]
[Black "Csonka, Balazs"]
[WhiteFideId "14408120"]
[BlackFideId "742910"]
[WhiteElo "2448"]
[BlackElo "2404"]
[Result "0-1"]
[Round "10"]
[TimeControl "180+1"]
[Date "2022.05.24"]
[WhiteClock "0:00:01"]
[BlackClock "0:00:43"]

1. d4 {[%clk 0:03:00]}  Nf6 {[%clk 0:02:57]} 2. c4 {[%clk 0:03:01]}  e6 {[%clk 0:02:56]} 3. Nf3 {[%clk 0:03:01]}  d5 {[%clk 0:02:55]} 4. g3 {[%clk 0:03:01]}  Be7 {[%clk 0:02:54]} 5. Bg2 {[%clk 0:03:01]}  O-O {[%clk 0:02:54]} 6. O-O {[%clk 0:03:01]}  c6 {[%clk 0:02:54]} 7. Qc2 {[%clk 0:03:01]}  b6 {[%clk 0:02:50]} 8. Nbd2 {[%clk 0:03:00]}  Bb7 {[%clk 0:02:50]} 9. Rd1 {[%clk 0:02:56]}  Nbd7 {[%clk 0:02:34]} 10. e4 {[%clk 0:02:56]}  dxc4 {[%clk 0:02:32]} 11. Nxc4 {[%clk 0:02:50]}  c5 {[%clk 0:02:32]} 12. d5 {[%clk 0:01:46]}  exd5 {[%clk 0:02:33]} 13. exd5 {[%clk 0:01:45]}  Bxd5 {[%clk 0:02:10]} 14. Bf4 {[%clk 0:01:22]}  Qc8 {[%clk 0:01:55]} 15. Nd6 {[%clk 0:00:40]}  Bxd6 {[%clk 0:01:54]} 16. Bxd6 {[%clk 0:00:41]}  Re8 {[%clk 0:01:52]} 17. Qf5 {[%clk 0:00:38]}  Be4 {[%clk 0:01:47]} 18. Qf4 {[%clk 0:00:24]}  Qb7 {[%clk 0:01:28]} 19. g4 {[%clk 0:00:20]}  Nf8 {[%clk 0:01:23]} 20. Bxf8 {[%clk 0:00:18]}  Rxf8 {[%clk 0:01:24]} 21. g5 {[%clk 0:00:17]}  Nh5 {[%clk 0:01:22]} 22. Qg4 {[%clk 0:00:18]}  g6 {[%clk 0:01:19]} 23. Rd7 {[%clk 0:00:17]}  Qc8 {[%clk 0:01:13]} 24. Qxe4 {[%clk 0:00:04]}  Qxd7 {[%clk 0:01:13]} 25. Ne5 {[%clk 0:00:04]}  Qe6 {[%clk 0:01:11]} 26. Re1 {[%clk 0:00:04]}  Rad8 {[%clk 0:01:04]} 27. Bf3 {[%clk 0:00:01]}  Ng7 {[%clk 0:00:54]} 28. Qb1 {[%clk 0:00:01]}  Qf5 {[%clk 0:00:49]} 29. Qxf5 {[%clk 0:00:01]}  Nxf5 {[%clk 0:00:50]} 30. Ng4 {[%clk 0:00:01]}  Kg7 {[%clk 0:00:44]} 31. Nf6 {[%clk 0:00:01]}  h6 {[%clk 0:00:43]} 0-1


[Site "https://www.chess.com"]

[Event "Titled Tuesday Blitz May 24 Early 2022"]
[White "Martin Carmona, Gaston Manuel"]
[Black "Janaszak, Dawid"]
[WhiteFideId "22284567"]
[BlackFideId "1119206"]
[WhiteElo "2162"]
[BlackElo "2199"]
[Result "0-1"]
[Round "10"]
[TimeControl "180+1"]
[Date "2022.05.25"]
[WhiteClock "0:00:01"]
[BlackClock "0:01:26"]

1. d4 {[%clk 0:03:00]}  Nf6 {[%clk 0:02:58]} 2. c4 {[%clk 0:02:57]}  g6 {[%clk 0:02:58]} 3. Nc3 {[%clk 0:02:58]}  Bg7 {[%clk 0:02:57]} 4. e4 {[%clk 0:02:58]}  d6 {[%clk 0:02:58]} 5. Nf3 {[%clk 0:02:59]}  O-O {[%clk 0:02:58]} 6. Be2 {[%clk 0:02:59]}  e5 {[%clk 0:02:56]} 7. dxe5 {[%clk 0:03:00]}  dxe5 {[%clk 0:02:56]} 8. Qxd8 {[%clk 0:03:01]}  Rxd8 {[%clk 0:02:57]} 9. Bg5 {[%clk 0:03:02]}  Na6 {[%clk 0:02:46]} 10. Nd5 {[%clk 0:02:41]}  Rd6 {[%clk 0:02:46]} 11. Bxf6 {[%clk 0:01:05]}  Bxf6 {[%clk 0:02:47]} 12. O-O-O {[%clk 0:00:40]}  Bg4 {[%clk 0:02:32]} 13. b4 {[%clk 0:00:27]}  Bd8 {[%clk 0:01:46]} 14. c5 {[%clk 0:00:25]}  Re6 {[%clk 0:01:43]} 15. a3 {[%clk 0:00:14]}  c6 {[%clk 0:01:37]} 16. Ne3 {[%clk 0:00:14]}  Bxf3 {[%clk 0:01:37]} 17. Bxf3 {[%clk 0:00:13]}  Bg5 {[%clk 0:01:38]} 18. Rhe1 {[%clk 0:00:12]}  Rb8 {[%clk 0:01:31]} 19. Kc2 {[%clk 0:00:11]}  Nc7 {[%clk 0:01:31]} 20. Nc4 {[%clk 0:00:10]}  Nb5 {[%clk 0:01:31]} 21. Bg4 {[%clk 0:00:08]}  Re7 {[%clk 0:01:29]} 22. g3 {[%clk 0:00:04]}  h5 {[%clk 0:01:28]} 23. Be2 {[%clk 0:00:03]}  Kg7 {[%clk 0:01:28]} 24. h4 {[%clk 0:00:03]}  Bf6 {[%clk 0:01:27]} 25. Rd3 {[%clk 0:00:03]}  Nd4+ {[%clk 0:01:27]} 26. Kc3 {[%clk 0:00:03]}  Rd8 {[%clk 0:01:26]} 27. Bf1 {[%clk 0:00:01]}  Red7 {[%clk 0:01:26]} 0-1


[Site "https://www.chess.com"]

[Event "Titled Tuesday Blitz May 24 Early 2022"]
[White "Molina, Roberto Junio Brito"]
[Black "Gurevich, Dmitry"]
[WhiteFideId "2109450"]
[BlackFideId "2000407"]
[WhiteElo "2432"]
[BlackElo "2506"]
[Result "1/2-1/2"]
[Round "10"]
[TimeControl "180+1"]
[Date "2022.05.25"]
[WhiteClock "0:00:38"]
[BlackClock "0:00:09"]

1. d4 {[%clk 0:03:00]}  Nf6 {[%clk 0:02:59]} 2. c4 {[%clk 0:03:01]}  a6 {[%clk 0:02:58]} 3. Nc3 {[%clk 0:02:58]}  c5 {[%clk 0:02:58]} 4. d5 {[%clk 0:02:58]}  b5 {[%clk 0:02:58]} 5. cxb5 {[%clk 0:02:58]}  axb5 {[%clk 0:02:58]} 6. Nxb5 {[%clk 0:02:59]}  Qa5+ {[%clk 0:02:57]} 7. Nc3 {[%clk 0:02:59]}  Bb7 {[%clk 0:02:57]} 8. f3 {[%clk 0:02:58]}  Nxd5 {[%clk 0:02:55]} 9. Bd2 {[%clk 0:02:58]}  Nxc3 {[%clk 0:02:36]} 10. Bxc3 {[%clk 0:02:59]}  Qb6 {[%clk 0:02:36]} 11. e4 {[%clk 0:03:00]}  Nc6 {[%clk 0:02:31]} 12. Bc4 {[%clk 0:02:59]}  e6 {[%clk 0:02:25]} 13. Ne2 {[%clk 0:02:57]}  Be7 {[%clk 0:02:24]} 14. O-O {[%clk 0:02:56]}  Bf6 {[%clk 0:02:09]} 15. Kh1 {[%clk 0:02:53]}  Nd4 {[%clk 0:01:58]} 16. Qd2 {[%clk 0:02:41]}  d5 {[%clk 0:01:42]} 17. exd5 {[%clk 0:02:38]}  exd5 {[%clk 0:01:42]} 18. Bd3 {[%clk 0:02:10]}  O-O {[%clk 0:01:32]} 19. Nxd4 {[%clk 0:02:09]}  cxd4 {[%clk 0:01:32]} 20. Bb4 {[%clk 0:02:08]}  Rfe8 {[%clk 0:01:29]} 21. a3 {[%clk 0:02:04]}  Ba6 {[%clk 0:01:25]} 22. Bxa6 {[%clk 0:01:59]}  Qxa6 {[%clk 0:01:14]} 23. Rfe1 {[%clk 0:01:58]}  h6 {[%clk 0:01:12]} 24. Rad1 {[%clk 0:01:56]}  Rac8 {[%clk 0:01:05]} 25. b3 {[%clk 0:01:47]}  Qc6 {[%clk 0:00:45]} 26. Qd3 {[%clk 0:01:40]}  g6 {[%clk 0:00:39]} 27. Bd2 {[%clk 0:01:29]}  Rxe1+ {[%clk 0:00:32]} 28. Rxe1 {[%clk 0:01:29]}  Qc2 {[%clk 0:00:30]} 29. Qxc2 {[%clk 0:01:24]}  Rxc2 {[%clk 0:00:29]} 30. Rd1 {[%clk 0:01:08]}  Rb2 {[%clk 0:00:21]} 31. b4 {[%clk 0:01:04]}  Ra2 {[%clk 0:00:20]} 32. Kg1 {[%clk 0:00:57]}  Rxa3 {[%clk 0:00:20]} 33. Rb1 {[%clk 0:00:57]}  Ra2 {[%clk 0:00:19]} 34. Bxh6 {[%clk 0:00:53]}  d3 {[%clk 0:00:18]} 35. Kf1 {[%clk 0:00:51]}  Bd4 {[%clk 0:00:17]} 36. Rd1 {[%clk 0:00:37]}  Rf2+ {[%clk 0:00:15]} 37. Ke1 {[%clk 0:00:38]}  Re2+ {[%clk 0:00:12]} 38. Kf1 {[%clk 0:00:38]}  Rf2+ {[%clk 0:00:11]} 39. Ke1 {[%clk 0:00:38]}  Re2+ {[%clk 0:00:09]} 40. Kf1 {[%clk 0:00:38]}  Rf2+ {[%clk 0:00:09]} 1/2-1/2


[Site "https://www.chess.com"]